[Event "Live Chess"]
[Site "Chess.com"]
[Date "2023.05.21"]
[Round "-"]
[White "stevochess11"]
[Black "Missedidea"]
[Result "0-1"]
[WhiteElo "1787"]
[BlackElo "1832"]
[TimeControl "300"]
[EndTime "17:36:08 PDT"]
[Termination "Missedidea won by resignation"]

1. d4 {[%clk 0:04:56.6]} 1... Nf6 {[%clk 0:04:56.7]} 2. Nf3 {[%clk 0:04:51.3]}
2... g6 {[%clk 0:04:54.4]} 3. Nc3 {[%clk 0:04:49.5]} 3... c5 {[%clk 0:04:51.8]}
4. e4 {[%clk 0:04:44.4]} 4... cxd4 {[%clk 0:04:49.5]} 5. Nxd4 {[%clk 0:04:42.6]}
5... d6 {[%clk 0:04:37.3]} 6. Be3 {[%clk 0:04:38.8]} 6... Bg7 {[%clk 0:04:35.4]}
7. f3 {[%clk 0:04:32]} 7... O-O {[%clk 0:04:33.5]} 8. Bc4 {[%clk 0:04:28.1]}
8... Nc6 {[%clk 0:04:31.7]} 9. Qd2 {[%clk 0:04:20.7]} 9... Bd7 {[%clk 0:04:30]}
10. O-O {[%clk 0:04:19.3]} 10... a6 {[%clk 0:04:14.4]} 11. Rad1 {[%clk
0:04:10.8]} 11... b5 {[%clk 0:04:01.1]} 12. Nxc6 {[%clk 0:04:03.1]} 12... Bxc6
{[%clk 0:03:57.4]} 13. Bd5 {[%clk 0:04:00.1]} 13... Nxd5 {[%clk 0:03:51.1]} 14.
exd5 {[%clk 0:03:58.3]} 14... Bd7 {[%clk 0:03:46.4]} 15. Bh6 {[%clk 0:03:56.8]}
15... Rc8 {[%clk 0:03:38.6]} 16. Bxg7 {[%clk 0:03:21.4]} 16... Kxg7 {[%clk
0:03:35.8]} 17. Qd4+ {[%clk 0:03:17.8]} 17... Kg8 {[%clk 0:03:33.8]} 18. Rd2
{[%clk 0:03:13.9]} 18... Rc4 {[%clk 0:03:31]} 19. Qe3 {[%clk 0:03:08.7]} 19...
Bf5 {[%clk 0:03:24.2]} 20. Re1 {[%clk 0:03:06.1]} 20... e5 {[%clk 0:03:10]} 21.
dxe6 {[%clk 0:02:58.9]} 21... Bxe6 {[%clk 0:03:05.9]} 22. Ne4 {[%clk 0:02:57.1]}
22... d5 {[%clk 0:02:41.4]} 23. Qh6 {[%clk 0:02:42.5]} 23... Qb6+ {[%clk
0:01:54.8]} 24. Nf2 {[%clk 0:02:35.5]} 24... Rfc8 {[%clk 0:01:43.4]} 25. c3
{[%clk 0:02:31.4]} 25... b4 {[%clk 0:01:39.8]} 26. Qe3 {[%clk 0:02:26.1]} 26...
Qxe3 {[%clk 0:01:36.1]} 27. Rxe3 {[%clk 0:02:24.9]} 27... bxc3 {[%clk
0:01:34.9]} 28. bxc3 {[%clk 0:02:23.7]} 28... Rxc3 {[%clk 0:01:33.9]} 29. Rxc3
{[%clk 0:02:21.4]} 29... Rxc3 {[%clk 0:01:32.8]} 30. Rb2 {[%clk 0:02:08]} 30...
Rc1+ {[%clk 0:01:30.2]} 31. Nd1 {[%clk 0:02:04.5]} 31... Rxd1+ {[%clk
0:01:28.7]} 32. Kf2 {[%clk 0:02:04.4]} 32... d4 {[%clk 0:01:27.1]} 33. Ke2
{[%clk 0:02:02.7]} 33... Rg1 {[%clk 0:01:24.2]} 34. g4 {[%clk 0:02:01]} 34...
Rg2+ {[%clk 0:01:22]} 0-1

[Event "Live Chess"]
[Site "Chess.com"]
[Date "2023.05.21"]
[Round "-"]
[White "DaveL5678"]
[Black "Man-Del-Brot"]
[Result "1-0"]
[WhiteElo "1006"]
[BlackElo "1041"]
[TimeControl "300"]
[EndTime "17:36:13 PDT"]
[Termination "DaveL5678 won on time"]

1. e4 {[%clk 0:04:53.6]} 1... e5 {[%clk 0:04:57.8]} 2. Nf3 {[%clk 0:04:52.4]}
2... Nc6 {[%clk 0:04:56.4]} 3. c3 {[%clk 0:04:50.8]} 3... d6 {[%clk 0:04:54.6]}
4. d4 {[%clk 0:04:49.2]} 4... Bg4 {[%clk 0:04:52.9]} 5. d5 {[%clk 0:04:44.5]}
5... Nb8 {[%clk 0:04:48.9]} 6. h3 {[%clk 0:04:38.5]} 6... Bxf3 {[%clk
0:04:43.2]} 7. Qxf3 {[%clk 0:04:36]} 7... Nf6 {[%clk 0:04:41.8]} 8. Bg5 {[%clk
0:04:31.6]} 8... Be7 {[%clk 0:04:40.9]} 9. Nd2 {[%clk 0:04:28.2]} 9... a6 {[%clk
0:04:37.7]} 10. Be2 {[%clk 0:04:08.3]} 10... Nxd5 {[%clk 0:04:29.9]} 11. Bxe7
{[%clk 0:04:03.2]} 11... Nxe7 {[%clk 0:04:28.5]} 12. O-O {[%clk 0:03:56]} 12...
O-O {[%clk 0:04:25]} 13. Nc4 {[%clk 0:03:52.7]} 13... f5 {[%clk 0:04:21.1]} 14.
Nd2 {[%clk 0:03:28.9]} 14... d5 {[%clk 0:04:14.3]} 15. exd5 {[%clk 0:03:22.2]}
15... e4 {[%clk 0:04:05.6]} 16. Qf4 {[%clk 0:03:07]} 16... Nxd5 {[%clk 0:04:03]}
17. Bc4 {[%clk 0:03:01.5]} 17... Kh8 {[%clk 0:03:53.5]} 18. Bxd5 {[%clk
0:02:27.8]} 18... Qxd5 {[%clk 0:03:51.5]} 19. c4 {[%clk 0:02:14]} 19... Qe6
{[%clk 0:02:56.7]} 20. Qxc7 {[%clk 0:01:52.4]} 20... Nc6 {[%clk 0:02:44.7]} 21.
Qxb7 {[%clk 0:01:42.1]} 21... Nd4 {[%clk 0:02:38.1]} 22. Qd5 {[%clk 0:01:20.9]}
22... Qf6 {[%clk 0:02:30.7]} 23. Rad1 {[%clk 0:01:05.3]} 23... Rad8 {[%clk
0:01:38.3]} 24. Qc5 {[%clk 0:00:48.6]} 24... Ne2+ {[%clk 0:01:29.9]} 25. Kh1
{[%clk 0:00:38.7]} 25... Rfe8 {[%clk 0:00:44.9]} 26. Nb3 {[%clk 0:00:33.1]}
26... Rxd1 {[%clk 0:00:42.6]} 27. Rxd1 {[%clk 0:00:31.3]} 27... Qg6 {[%clk
0:00:21]} 28. Nd4 {[%clk 0:00:22.4]} 28... Nf4 {[%clk 0:00:18.8]} 29. g3 {[%clk
0:00:19.1]} 29... Ne6 {[%clk 0:00:13.1]} 30. Nxe6 {[%clk 0:00:16.9]} 30... Qxe6
{[%clk 0:00:11.1]} 31. Qd5 {[%clk 0:00:13.8]} 31... Qxd5 {[%clk 0:00:03.1]} 32.
Rxd5 {[%clk 0:00:11.8]} 32... e3 {[%clk 0:00:01.8]} 33. fxe3 {[%clk 0:00:08.5]}
33... h6 {[%clk 0:00:00.7]} 34. Kg2 {[%clk 0:00:05]} 34... Kh7 {[%clk
0:00:00.6]} 35. Kf3 {[%clk 0:00:04]} 1-0

[Event "Live Chess"]
[Site "Chess.com"]
[Date "2023.05.21"]
[Round "-"]
[White "Tushinskiy"]
[Black "laminaaprod"]
[Result "0-1"]
[WhiteElo "2159"]
[BlackElo "2237"]
[TimeControl "300"]
[EndTime "17:36:33 PDT"]
[Termination "laminaaprod won by resignation"]

1. d4 {[%clk 0:04:51.5]} 1... d5 {[%clk 0:04:59.2]} 2. c3 {[%clk 0:04:51.4]}
2... c5 {[%clk 0:04:57.7]} 3. Nf3 {[%clk 0:04:51.3]} 3... Nc6 {[%clk 0:04:56.7]}
4. Bf4 {[%clk 0:04:50.3]} 4... e6 {[%clk 0:04:55.8]} 5. e3 {[%clk 0:04:49]} 5...
Bd6 {[%clk 0:04:55.3]} 6. Bg3 {[%clk 0:04:47.8]} 6... Bxg3 {[%clk 0:04:54.3]} 7.
hxg3 {[%clk 0:04:47.7]} 7... Nf6 {[%clk 0:04:53.4]} 8. Bd3 {[%clk 0:04:47.1]}
8... Qc7 {[%clk 0:04:52.9]} 9. Nbd2 {[%clk 0:04:46.1]} 9... e5 {[%clk
0:04:52.5]} 10. dxe5 {[%clk 0:04:42.8]} 10... Nxe5 {[%clk 0:04:52.4]} 11. Nxe5
{[%clk 0:04:42.4]} 11... Qxe5 {[%clk 0:04:52.3]} 12. Nf3 {[%clk 0:04:41.8]}
12... Qe7 {[%clk 0:04:52.2]} 13. Be2 {[%clk 0:04:37.9]} 13... h6 {[%clk
0:04:51.1]} 14. Qa4+ {[%clk 0:04:33.7]} 14... Bd7 {[%clk 0:04:49.8]} 15. Qa3
{[%clk 0:04:32.6]} 15... Bc6 {[%clk 0:04:42.8]} 16. O-O-O {[%clk 0:04:30.8]}
16... b5 {[%clk 0:04:35.5]} 17. Qa5 {[%clk 0:04:28]} 17... b4 {[%clk 0:04:30.3]}
18. Bb5 {[%clk 0:04:25.2]} 18... Bxb5 {[%clk 0:04:04.6]} 19. Qxb5+ {[%clk
0:04:25.1]} 19... Kf8 {[%clk 0:04:04]} 20. cxb4 {[%clk 0:04:18.6]} 20... cxb4
{[%clk 0:03:38.4]} 21. Rd4 {[%clk 0:04:16.2]} 21... a5 {[%clk 0:03:35.1]} 22.
Kb1 {[%clk 0:04:09.2]} 22... g6 {[%clk 0:03:33.7]} 23. Qd3 {[%clk 0:03:54.2]}
23... Kg7 {[%clk 0:03:30.1]} 24. Rf4 {[%clk 0:03:53.4]} 24... Rac8 {[%clk
0:03:16.3]} 25. g4 {[%clk 0:03:52.5]} 25... a4 {[%clk 0:02:58.4]} 26. Nd4 {[%clk
0:03:32.4]} 26... a3 {[%clk 0:02:43.9]} 27. f3 {[%clk 0:03:16.5]} 27... Rhe8
{[%clk 0:02:32.1]} 28. Re1 {[%clk 0:03:15.2]} 28... axb2 {[%clk 0:02:27.2]} 29.
Kxb2 {[%clk 0:03:13.4]} 29... Rc3 {[%clk 0:02:15.5]} 30. Qa6 {[%clk 0:03:10.7]}
30... Ra3 {[%clk 0:02:01.5]} 31. Qc6 {[%clk 0:03:01.4]} 31... Rea8 {[%clk
0:01:57.6]} 32. Ra1 {[%clk 0:02:59.7]} 32... R8a6 {[%clk 0:01:31]} 33. Qb5
{[%clk 0:02:39.4]} 33... Qxe3 {[%clk 0:01:21.8]} 34. Nc2 {[%clk 0:02:32.6]}
34... Qxf4 {[%clk 0:01:00.8]} 35. Nxa3 {[%clk 0:02:30.7]} 35... bxa3+ {[%clk
0:01:00.1]} 36. Kc2 {[%clk 0:02:25.9]} 36... Ra4 {[%clk 0:00:54.7]} 37. Rb1
{[%clk 0:02:14.1]} 37... Rc4+ {[%clk 0:00:53.3]} 38. Kd1 {[%clk 0:02:11.3]}
38... Rd4+ {[%clk 0:00:46.9]} 39. Ke1 {[%clk 0:02:07.8]} 39... Qe3+ {[%clk
0:00:36.1]} 40. Kf1 {[%clk 0:02:05.6]} 40... Rd2 {[%clk 0:00:35.8]} 0-1

[Event "Live Chess"]
[Site "Chess.com"]
[Date "2023.05.21"]
[Round "-"]
[White "nigelst"]
[Black "KGreenGator"]
[Result "0-1"]
[WhiteElo "1786"]
[BlackElo "1792"]
[TimeControl "300"]
[EndTime "17:36:37 PDT"]
[Termination "KGreenGator won by resignation"]

1. e4 {[%clk 0:04:57.3]} 1... c5 {[%clk 0:04:58.4]} 2. Nf3 {[%clk 0:04:56.2]}
2... Nc6 {[%clk 0:04:57.1]} 3. Bb5 {[%clk 0:04:54.5]} 3... Qc7 {[%clk
0:04:55.2]} 4. O-O {[%clk 0:04:52.1]} 4... a6 {[%clk 0:04:53.7]} 5. Bxc6 {[%clk
0:04:50.4]} 5... Qxc6 {[%clk 0:04:52.6]} 6. c3 {[%clk 0:04:50]} 6... Qxe4 {[%clk
0:04:50.9]} 7. Re1 {[%clk 0:04:49]} 7... Qc6 {[%clk 0:04:49.6]} 8. d4 {[%clk
0:04:47.7]} 8... cxd4 {[%clk 0:04:47.3]} 9. cxd4 {[%clk 0:04:46.8]} 9... d5
{[%clk 0:04:43.1]} 10. Ne5 {[%clk 0:04:45.3]} 10... Qc7 {[%clk 0:04:38.1]} 11.
Qf3 {[%clk 0:04:39.5]} 11... Nf6 {[%clk 0:04:36.4]} 12. Bg5 {[%clk 0:04:36.3]}
12... Qa5 {[%clk 0:04:25.3]} 13. Nc3 {[%clk 0:04:32.9]} 13... Be6 {[%clk
0:04:19.4]} 14. a3 {[%clk 0:04:14.8]} 14... h6 {[%clk 0:04:17]} 15. Bh4 {[%clk
0:04:10]} 15... Nd7 {[%clk 0:04:05.3]} 16. Ng6 {[%clk 0:03:53.2]} 16... Rg8
{[%clk 0:04:00.1]} 17. Nxf8 {[%clk 0:03:51.6]} 17... Rxf8 {[%clk 0:03:54.3]} 18.
Qh5 {[%clk 0:03:39]} 18... Kd8 {[%clk 0:03:45.3]} 19. Rac1 {[%clk 0:03:17.6]}
19... Nf6 {[%clk 0:03:42.9]} 20. Bxf6 {[%clk 0:03:10.7]} 20... exf6 {[%clk
0:03:41.5]} 21. Qf3 {[%clk 0:02:58.9]} 21... Kd7 {[%clk 0:03:34.8]} 22. b4
{[%clk 0:02:46.2]} 22... Qxa3 {[%clk 0:03:24.5]} 23. Nxd5 {[%clk 0:02:44.9]}
23... Qxf3 {[%clk 0:03:21.9]} 24. gxf3 {[%clk 0:02:40.6]} 24... Bxd5 {[%clk
0:03:19.8]} 0-1

[Event "Live Chess"]
[Site "Chess.com"]
[Date "2023.05.21"]
[Round "-"]
[White "Cimon"]
[Black "LanceMaster23"]
[Result "1/2-1/2"]
[WhiteElo "1857"]
[BlackElo "1900"]
[TimeControl "300"]
[EndTime "17:37:16 PDT"]
[Termination "Game drawn - timeout vs insufficient material"]

1. d4 {[%clk 0:04:57.5]} 1... Nf6 {[%clk 0:04:59.2]} 2. Nf3 {[%clk 0:04:55]}
2... d5 {[%clk 0:04:58.7]} 3. c4 {[%clk 0:04:53.6]} 3... Bf5 {[%clk 0:04:56.3]}
4. Nc3 {[%clk 0:04:52.1]} 4... e6 {[%clk 0:04:55.6]} 5. Qb3 {[%clk 0:04:45.4]}
5... b6 {[%clk 0:04:48.5]} 6. cxd5 {[%clk 0:04:40.7]} 6... exd5 {[%clk
0:04:39.9]} 7. Bg5 {[%clk 0:04:37.8]} 7... c6 {[%clk 0:04:36.6]} 8. e3 {[%clk
0:04:32.8]} 8... h6 {[%clk 0:04:30.9]} 9. Bh4 {[%clk 0:04:29.5]} 9... Be7 {[%clk
0:04:24.9]} 10. Be2 {[%clk 0:04:19.4]} 10... O-O {[%clk 0:04:23.4]} 11. O-O
{[%clk 0:04:17.2]} 11... Re8 {[%clk 0:04:20.1]} 12. Ne5 {[%clk 0:04:14.2]} 12...
Ne4 {[%clk 0:04:12]} 13. Bxe7 {[%clk 0:04:12.3]} 13... Qxe7 {[%clk 0:04:02.4]}
14. Rac1 {[%clk 0:03:57.6]} 14... f6 {[%clk 0:03:48]} 15. Nxe4 {[%clk
0:03:48.6]} 15... fxe5 {[%clk 0:03:46.1]} 16. Ng3 {[%clk 0:03:40.8]} 16... Be6
{[%clk 0:03:17.1]} 17. dxe5 {[%clk 0:03:23.8]} 17... c5 {[%clk 0:03:07.2]} 18.
Bh5 {[%clk 0:02:56.7]} 18... Rd8 {[%clk 0:02:54.6]} 19. Qd3 {[%clk 0:02:53.9]}
19... Nc6 {[%clk 0:02:39]} 20. f4 {[%clk 0:02:47.7]} 20... d4 {[%clk 0:02:31.7]}
21. e4 {[%clk 0:02:41.6]} 21... c4 {[%clk 0:02:30.4]} 22. Qf3 {[%clk 0:02:36.3]}
22... d3 {[%clk 0:02:16.4]} 23. Nf5 {[%clk 0:02:32.6]} 23... Bxf5 {[%clk
0:01:40.5]} 24. exf5 {[%clk 0:02:30.6]} 24... Qc5+ {[%clk 0:01:34.5]} 25. Kh1
{[%clk 0:02:28.8]} 25... Nd4 {[%clk 0:01:34.1]} 26. Qg4 {[%clk 0:02:22]} 26...
Kh8 {[%clk 0:01:11.4]} 27. f6 {[%clk 0:02:10.6]} 27... gxf6 {[%clk 0:01:01.8]}
28. Qg6 {[%clk 0:02:07.6]} 28... Qf8 {[%clk 0:00:44]} 29. Rxc4 {[%clk
0:01:50.9]} 29... Rac8 {[%clk 0:00:18.2]} 30. b3 {[%clk 0:01:12.8]} 30... Rxc4
{[%clk 0:00:16.1]} 31. bxc4 {[%clk 0:01:11.6]} 31... f5 {[%clk 0:00:15.7]} 32.
Rd1 {[%clk 0:00:51.7]} 32... Nc6 {[%clk 0:00:13.4]} 33. Qxc6 {[%clk 0:00:48]}
33... d2 {[%clk 0:00:12.5]} 34. Qf6+ {[%clk 0:00:38.7]} 34... Kh7 {[%clk
0:00:10.7]} 35. Qxf8 {[%clk 0:00:37]} 35... Rxf8 {[%clk 0:00:09.4]} 36. Rxd2
{[%clk 0:00:35.9]} 36... Rc8 {[%clk 0:00:09.1]} 37. Rc2 {[%clk 0:00:34]} 37...
b5 {[%clk 0:00:07.9]} 38. c5 {[%clk 0:00:33]} 38... a5 {[%clk 0:00:07.6]} 39. c6
{[%clk 0:00:32.1]} 39... b4 {[%clk 0:00:07.2]} 40. c7 {[%clk 0:00:30.6]} 40...
a4 {[%clk 0:00:06.9]} 41. Bf7 {[%clk 0:00:27.6]} 41... b3 {[%clk 0:00:06.8]} 42.
axb3 {[%clk 0:00:26.3]} 42... axb3 {[%clk 0:00:06.7]} 43. Rb2 {[%clk 0:00:24.6]}
43... Rxc7 {[%clk 0:00:06.1]} 44. Kg1 {[%clk 0:00:19.5]} 44... Rxf7 {[%clk
0:00:05.2]} 45. Rxb3 {[%clk 0:00:18.3]} 45... Rc7 {[%clk 0:00:05.1]} 46. Kf2
{[%clk 0:00:16.6]} 46... Kg6 {[%clk 0:00:05]} 47. Rb6+ {[%clk 0:00:14.6]} 47...
Kh5 {[%clk 0:00:04.3]} 48. Kg3 {[%clk 0:00:12.6]} 48... Rc3+ {[%clk 0:00:03.3]}
49. Kf2 {[%clk 0:00:10.9]} 49... Kg4 {[%clk 0:00:03.2]} 50. Rxh6 {[%clk
0:00:08.3]} 50... Kxf4 {[%clk 0:00:03.1]} 51. e6 {[%clk 0:00:07.3]} 51... Ke5
{[%clk 0:00:03]} 52. e7 {[%clk 0:00:06.2]} 52... Rc8 {[%clk 0:00:02.9]} 53. Rh7
{[%clk 0:00:05]} 53... Ke6 {[%clk 0:00:02.8]} 54. g3 {[%clk 0:00:04.1]} 54...
Re8 {[%clk 0:00:02.7]} 55. g4 {[%clk 0:00:03.1]} 55... Rxe7 {[%clk 0:00:02.6]}
56. gxf5+ {[%clk 0:00:02.4]} 56... Kd7 {[%clk 0:00:02.1]} 57. Rxe7+ {[%clk
0:00:01.3]} 57... Kxe7 {[%clk 0:00:02]} 58. h4 {[%clk 0:00:00.7]} 58... Kf6
{[%clk 0:00:01.9]} 59. h5 {[%clk 0:00:00.1]} 59... Kxf5 {[%clk 0:00:01.8]}
1/2-1/2

[Event "Live Chess"]
[Site "Chess.com"]
[Date "2023.05.21"]
[Round "-"]
[White "jimwad"]
[Black "CeladonFish"]
[Result "1-0"]
[WhiteElo "1254"]
[BlackElo "1088"]
[TimeControl "300"]
[EndTime "17:37:42 PDT"]
[Termination "jimwad won by resignation"]

1. d4 {[%clk 0:04:58.4]} 1... Nf6 {[%clk 0:04:56.8]} 2. c4 {[%clk 0:04:56]} 2...
g6 {[%clk 0:04:55.7]} 3. Nc3 {[%clk 0:04:53.9]} 3... Bg7 {[%clk 0:04:54.4]} 4.
Nf3 {[%clk 0:04:53.1]} 4... O-O {[%clk 0:04:52.9]} 5. Bf4 {[%clk 0:04:51.9]}
5... d5 {[%clk 0:04:49]} 6. c5 {[%clk 0:04:50.3]} 6... b6 {[%clk 0:04:45.5]} 7.
b4 {[%clk 0:04:49]} 7... a5 {[%clk 0:04:43.8]} 8. a3 {[%clk 0:04:45.4]} 8...
bxc5 {[%clk 0:04:30.9]} 9. bxc5 {[%clk 0:04:44.2]} 9... Nh5 {[%clk 0:04:24.9]}
10. Qd2 {[%clk 0:04:34.2]} 10... Nc6 {[%clk 0:04:17.4]} 11. Nb5 {[%clk
0:04:30.6]} 11... Rb8 {[%clk 0:04:11.5]} 12. Bxc7 {[%clk 0:04:27.2]} 1-0

[Event "Live Chess"]
[Site "Chess.com"]
[Date "2023.05.21"]
[Round "-"]
[White "LiamBellwood"]
[Black "CheckThis4"]
[Result "0-1"]
[WhiteElo "2058"]
[BlackElo "2511"]
[TimeControl "300"]
[EndTime "17:37:59 PDT"]
[Termination "CheckThis4 won by resignation"]

1. d4 {[%clk 0:04:59.5]} 1... Nf6 {[%clk 0:04:57.8]} 2. Nc3 {[%clk 0:04:58.8]}
2... d5 {[%clk 0:04:55.3]} 3. Bf4 {[%clk 0:04:58.3]} 3... a6 {[%clk 0:04:50.5]}
4. e3 {[%clk 0:04:57.7]} 4... e6 {[%clk 0:04:49]} 5. Qf3 {[%clk 0:04:55.1]} 5...
c5 {[%clk 0:04:47.1]} 6. g4 {[%clk 0:04:53.2]} 6... Nc6 {[%clk 0:04:45.3]} 7. g5
{[%clk 0:04:51.7]} 7... Nd7 {[%clk 0:04:44.3]} 8. Nge2 {[%clk 0:04:45.7]} 8...
Qb6 {[%clk 0:04:42.1]} 9. O-O-O {[%clk 0:04:37.1]} 9... cxd4 {[%clk 0:04:39.3]}
10. Nxd4 {[%clk 0:04:26.9]} 10... Nxd4 {[%clk 0:04:34.1]} 11. exd4 {[%clk
0:04:26.1]} 11... Bb4 {[%clk 0:04:32.5]} 12. a3 {[%clk 0:04:04.6]} 12... Be7
{[%clk 0:04:25.9]} 13. Bg2 {[%clk 0:03:59.6]} 13... Qa5 {[%clk 0:04:23.3]} 14.
Rhe1 {[%clk 0:03:48.2]} 14... Nb6 {[%clk 0:04:21.3]} 15. Bc7 {[%clk 0:03:29.9]}
15... Bd7 {[%clk 0:04:20.1]} 16. Bxb6 {[%clk 0:03:12.1]} 16... Qxb6 {[%clk
0:04:17.8]} 17. h4 {[%clk 0:03:10.3]} 17... Rc8 {[%clk 0:04:16.8]} 18. Kb1
{[%clk 0:03:08.4]} 18... Qa5 {[%clk 0:04:16.1]} 19. h5 {[%clk 0:02:53.7]} 19...
g6 {[%clk 0:04:10.9]} 20. hxg6 {[%clk 0:02:28.4]} 20... hxg6 {[%clk 0:04:10.8]}
21. Rh1 {[%clk 0:02:23]} 21... Rf8 {[%clk 0:04:02.2]} 22. Rhe1 {[%clk
0:02:13.7]} 22... Bc6 {[%clk 0:03:52.7]} 23. Qf4 {[%clk 0:02:09.9]} 23... Bxa3
{[%clk 0:03:44.5]} 24. Nxd5 {[%clk 0:02:01]} 24... Bxd5 {[%clk 0:03:41.9]} 25.
Bxd5 {[%clk 0:01:52.9]} 25... Bxb2 {[%clk 0:03:28.4]} 26. Ba2 {[%clk 0:01:26.2]}
26... Bc3 {[%clk 0:03:26.9]} 27. Qd6 {[%clk 0:01:00.1]} 27... Rc6 {[%clk
0:03:10.1]} 28. Qb8+ {[%clk 0:00:50.3]} 28... Ke7 {[%clk 0:03:03.5]} 29. Qxb7+
{[%clk 0:00:48.4]} 29... Rc7 {[%clk 0:03:02.6]} 0-1

[Event "Live Chess"]
[Site "Chess.com"]
[Date "2023.05.21"]
[Round "-"]
[White "manthanit"]
[Black "Jo1ts"]
[Result "0-1"]
[WhiteElo "1047"]
[BlackElo "814"]
[TimeControl "300"]
[EndTime "17:38:15 PDT"]
[Termination "Jo1ts won by resignation"]

1. e4 {[%clk 0:04:58.4]} 1... e5 {[%clk 0:04:56.1]} 2. Nf3 {[%clk 0:04:57.6]}
2... Nc6 {[%clk 0:04:50.2]} 3. Bc4 {[%clk 0:04:57]} 3... f5 {[%clk 0:04:47]} 4.
d3 {[%clk 0:04:48.5]} 4... fxe4 {[%clk 0:04:42.7]} 5. dxe4 {[%clk 0:04:47.3]}
5... Nf6 {[%clk 0:04:39.8]} 6. Bg5 {[%clk 0:04:41.6]} 6... Be7 {[%clk
0:04:35.8]} 7. Nc3 {[%clk 0:04:39.5]} 7... h6 {[%clk 0:04:33.4]} 8. Bh4 {[%clk
0:04:38]} 8... g5 {[%clk 0:04:31.7]} 9. Bg3 {[%clk 0:04:36.7]} 9... d6 {[%clk
0:04:16]} 10. h3 {[%clk 0:04:35.5]} 10... Bd7 {[%clk 0:04:10.3]} 11. a3 {[%clk
0:04:30.9]} 11... Bf8 {[%clk 0:03:59.5]} 12. O-O {[%clk 0:04:23.8]} 12... Qe7
{[%clk 0:03:57.2]} 13. b4 {[%clk 0:04:07.5]} 13... Be6 {[%clk 0:03:55]} 14. Bxe6
{[%clk 0:04:03.5]} 14... Qxe6 {[%clk 0:03:54.9]} 15. Nd5 {[%clk 0:03:58.3]}
15... O-O-O {[%clk 0:03:48]} 16. Nxf6 {[%clk 0:03:47.4]} 16... Qxf6 {[%clk
0:03:44.8]} 17. c4 {[%clk 0:03:46.4]} 17... h5 {[%clk 0:03:35.8]} 18. Kh1 {[%clk
0:03:29.3]} 18... g4 {[%clk 0:03:34.2]} 19. Nh2 {[%clk 0:03:25]} 19... Bh6
{[%clk 0:03:13.5]} 20. Nxg4 {[%clk 0:03:17.8]} 20... hxg4 {[%clk 0:03:01.9]} 21.
Qxg4+ {[%clk 0:03:17.2]} 21... Kb8 {[%clk 0:03:00.4]} 22. f4 {[%clk 0:03:10.3]}
22... Rhg8 {[%clk 0:02:47]} 23. Qf3 {[%clk 0:02:56.2]} 23... Nd4 {[%clk
0:02:43.3]} 24. Qf2 {[%clk 0:02:48]} 24... Rdf8 {[%clk 0:02:27.3]} 25. Bh4
{[%clk 0:02:29.6]} 25... Qxf4 {[%clk 0:02:20.2]} 26. Qxf4 {[%clk 0:02:26.4]}
26... Rxf4 {[%clk 0:02:13.2]} 27. Rxf4 {[%clk 0:02:23.1]} 27... Bxf4 {[%clk
0:02:10.3]} 28. Rd1 {[%clk 0:02:12.4]} 28... Nc2 {[%clk 0:02:01.7]} 29. c5
{[%clk 0:02:08.3]} 29... Rg6 {[%clk 0:01:41.1]} 30. cxd6 {[%clk 0:02:04.1]}
30... cxd6 {[%clk 0:01:39.7]} 31. g3 {[%clk 0:01:52.9]} 31... Bxg3 {[%clk
0:01:34.9]} 32. Rg1 {[%clk 0:01:47.3]} 32... Bxh4 {[%clk 0:01:21.9]} 33. Rxg6
{[%clk 0:01:45.7]} 33... Nxa3 {[%clk 0:01:17.5]} 34. Rxd6 {[%clk 0:01:44.4]}
34... Be7 {[%clk 0:01:15.3]} 35. Re6 {[%clk 0:01:43.2]} 35... Bxb4 {[%clk
0:01:13.5]} 36. Rxe5 {[%clk 0:01:41.9]} 36... Nc4 {[%clk 0:01:11.7]} 37. Rd5
{[%clk 0:01:31.8]} 37... Kc7 {[%clk 0:01:02.7]} 38. Kg2 {[%clk 0:01:28.2]} 38...
Ne3+ {[%clk 0:01:00.1]} 39. Kg3 {[%clk 0:01:22.5]} 39... Nxd5 {[%clk 0:00:58.4]}
40. exd5 {[%clk 0:01:20.3]} 40... Kd6 {[%clk 0:00:57.5]} 41. h4 {[%clk
0:01:19.9]} 41... Kxd5 {[%clk 0:00:54.6]} 42. Kg4 {[%clk 0:01:19.4]} 42... Bf8
{[%clk 0:00:50.8]} 43. h5 {[%clk 0:01:18.4]} 43... a5 {[%clk 0:00:49.4]} 44. Kf5
{[%clk 0:01:18]} 44... a4 {[%clk 0:00:46.6]} 45. Kg6 {[%clk 0:01:17.4]} 45...
Ke6 {[%clk 0:00:40.2]} 46. Kh7 {[%clk 0:01:14.7]} 46... Kf7 {[%clk 0:00:37.8]}
47. h6 {[%clk 0:01:14]} 47... Bxh6 {[%clk 0:00:33.9]} 48. Kxh6 {[%clk
0:01:13.1]} 48... a3 {[%clk 0:00:33.3]} 0-1

[Event "Live Chess"]
[Site "Chess.com"]
[Date "2023.05.21"]
[Round "-"]
[White "smoggyrabbit"]
[Black "Olisingapore"]
[Result "1-0"]
[WhiteElo "1747"]
[BlackElo "1795"]
[TimeControl "300"]
[EndTime "17:38:31 PDT"]
[Termination "smoggyrabbit won by checkmate"]

1. d4 {[%clk 0:04:57.8]} 1... Nf6 {[%clk 0:04:58.6]} 2. Nf3 {[%clk 0:04:56.8]}
2... d5 {[%clk 0:04:57.9]} 3. e3 {[%clk 0:04:56.1]} 3... c5 {[%clk 0:04:57.1]}
4. dxc5 {[%clk 0:04:52.9]} 4... Nc6 {[%clk 0:04:56.2]} 5. b3 {[%clk 0:04:47.3]}
5... Bd7 {[%clk 0:04:55]} 6. Bb2 {[%clk 0:04:46.5]} 6... e6 {[%clk 0:04:53.3]}
7. Bd3 {[%clk 0:04:45.5]} 7... Bxc5 {[%clk 0:04:52]} 8. O-O {[%clk 0:04:44.5]}
8... O-O {[%clk 0:04:51.6]} 9. Nbd2 {[%clk 0:04:43]} 9... e5 {[%clk 0:04:49]}
10. Nxe5 {[%clk 0:04:40]} 10... Nxe5 {[%clk 0:04:47.5]} 11. Bxe5 {[%clk
0:04:39.1]} 11... Re8 {[%clk 0:04:46]} 12. Bb2 {[%clk 0:04:37.8]} 12... Qc7
{[%clk 0:04:43.4]} 13. Bxf6 {[%clk 0:04:36]} 13... gxf6 {[%clk 0:04:41.6]} 14.
Qh5 {[%clk 0:04:23.5]} 14... Kf8 {[%clk 0:04:24.9]} 15. Qxd5 {[%clk 0:03:53.7]}
15... Re5 {[%clk 0:04:20.3]} 16. Qf3 {[%clk 0:03:49.6]} 16... Bc6 {[%clk
0:04:16.4]} 17. Qxf6 {[%clk 0:03:46]} 17... Rh5 {[%clk 0:04:11.1]} 18. h3 {[%clk
0:03:19.7]} 18... Re8 {[%clk 0:03:40.3]} 19. Bc4 {[%clk 0:01:34.4]} 19... Bd6
{[%clk 0:03:04]} 20. f4 {[%clk 0:00:46.6]} 20... Rxe3 {[%clk 0:02:34.8]} 21.
Rae1 {[%clk 0:00:44.8]} 21... Rg3 {[%clk 0:02:30.2]} 22. Ne4 {[%clk 0:00:24]}
22... Rg6 {[%clk 0:02:06.6]} 23. Qh8+ {[%clk 0:00:21.3]} 23... Rg8 {[%clk
0:02:04.7]} 24. Qc3 {[%clk 0:00:18]} 24... Bxf4 {[%clk 0:01:51.6]} 25. Rxf4
{[%clk 0:00:17.1]} 25... Qxf4 {[%clk 0:01:47.7]} 26. Rf1 {[%clk 0:00:16.4]}
26... Rxg2+ {[%clk 0:01:39.2]} 27. Kxg2 {[%clk 0:00:14.7]} 27... Bxe4+ {[%clk
0:01:36.5]} 28. Kg1 {[%clk 0:00:13.1]} 28... Qg3+ {[%clk 0:01:35.3]} 29. Qxg3
{[%clk 0:00:11.7]} 29... Bg6 {[%clk 0:01:27.7]} 30. Qc7 {[%clk 0:00:09.4]} 30...
Rg5+ {[%clk 0:01:24.2]} 31. Kf2 {[%clk 0:00:08.8]} 31... Rf5+ {[%clk 0:01:22.1]}
32. Ke1 {[%clk 0:00:08.2]} 32... Re5+ {[%clk 0:01:20.2]} 33. Qxe5 {[%clk
0:00:05.9]} 33... b5 {[%clk 0:01:15.6]} 34. Bd5 {[%clk 0:00:04.4]} 34... a6
{[%clk 0:01:14]} 35. Rf2 {[%clk 0:00:03.7]} 35... a5 {[%clk 0:01:13.3]} 36. Re2
{[%clk 0:00:03.2]} 36... a4 {[%clk 0:01:10.5]} 37. Qh8# {[%clk 0:00:02.2]} 1-0